bitfinex/quotes_ETHUSD_20260207
["timestamp","ask_amount","ask_price","bid_price","bid_amount"]
[1770453994185,0.05891016,2026.8,2025.9,4.93559054]
[1770453994895,1.59855788,2026.8,2025.9,4.93559054]
[1770453995098,1.94065888,2026.8,2026.0,0.82054196]
[1770453995701,1.94065888,2026.8,2025.7,0.001]
[1770453995702,1.65746804,2026.5,2025.7,0.001]
[1770453995871,2.73517366,2026.4,2025.7,0.001]
[1770453996067,1.5014587,2026.3,2025.7,0.001]
[1770453996272,0.05891016,2026.2,2025.7,0.001]
[1770453996564,0.33831854,2026.2,2025.7,0.001]
[1770453997167,2.73499682,2026.7,2025.7,0.001]
[1770453997565,1.29244828,2026.7,2025.7,0.001]
[1770453997772,2.73506252,2026.6,2025.7,0.001]
[1770453998199,2.73505897,2026.6,2025.7,0.001]
[1770453998582,1.5014587,2026.6,2025.7,0.001]
[1770453998780,1.5014587,2026.6,2025.7,0.77428182]
[1770454000381,1.5014587,2026.6,2025.8,1.23408036]
[1770454001612,2.73506302,2026.6,2025.8,1.23408036]
[1770454001786,1.56036886,2026.5,2025.8,1.23408036]
[1770454002290,1.56036886,2026.5,2025.9,0.001]
[1770454002491,0.002,2026.4,2025.9,0.001]
[1770454003679,0.05891016,2026.2,2025.9,0.001]
[1770454003882,1.5014587,2026.2,2025.7,0.001]
[1770454004617,2.73533969,2026.2,2025.7,0.001]
[1770454005187,1.5014587,2026.1,2025.7,0.001]
[1770454005389,1.23388099,2026.2,2025.7,0.001]
[1770454005390,1.83390283,2026.0,2025.7,0.001]
[1770454005589,2.73523896,2026.3,2025.7,0.001]
[1770454006098,1.56036886,2026.2,2025.7,0.001]
[1770454006505,1.23389763,2026.1,2025.7,0.001]
[1770454006904,2.73535633,2026.1,2025.7,0.001]
[1770454007111,0.77296698,2026.0,2025.7,0.001]
[1770454007288,1.5014587,2026.1,2025.7,0.001]
[1770454008799,2.73536629,2026.1,2025.7,0.001]
[1770454009318,1.56036886,2025.9,2025.5,0.001]
[1770454009491,1.5014587,2025.9,2025.5,0.001]
[1770454009686,0.05891016,2025.8,2025.5,0.001]
[1770454009882,1.56036886,2025.8,2024.9,1.23459481]
[1770454010319,1.56036886,2025.8,2024.9,2.22295537]
[1770454010687,1.56036886,2025.5,2024.8,1.23465966]
[1770454010887,1.56036886,2025.4,2024.6,0.001]
[1770454011205,2.73563176,2025.7,2024.6,0.001]
[1770454011518,0.05891016,2025.6,2024.6,0.001]
[1770454011716,0.83201107,2025.6,2024.6,0.001]
[1770454011895,1.5014587,2025.5,2024.6,0.001]
[1770454012094,0.05891016,2025.3,2024.6,0.001]
[1770454012296,0.05891016,2025.0,2024.6,0.001]
[1770454012506,1.56036886,2025.0,2024.6,0.001]
[1770454012721,1.56036886,2025.0,2024.3,0.001]
[1770454012896,2.73608757,2024.9,2024.3,0.001]
[1770454013098,1.56036886,2024.7,2024.3,0.001]
[1770454013421,0.77335132,2024.8,2024.3,0.001]
[1770454013622,1.29351903,2025.0,2024.3,0.001]
[1770454014028,0.05891016,2024.7,2024.3,0.001]
[1770454014623,1.5014587,2024.9,2024.3,0.001]
[1770454014803,1.23432408,2025.4,2024.3,0.001]
[1770454015000,1.29330923,2025.3,2024.5,0.001]
[1770454015197,0.62306434,2025.2,2024.5,0.001]
[1770454015396,2.73575628,2025.5,2024.5,0.001]
[1770454016127,0.05891016,2025.3,2024.5,0.001]
[1770454016701,1.5014587,2025.5,2024.5,0.001]
[1770454016901,2.06621513,2025.6,2024.6,1.23481181]
[1770454017425,0.77310091,2025.6,2024.6,1.23481181]
[1770454017728,0.05891016,2025.4,2024.6,1.23481181]
[1770454018420,0.05891016,2025.3,2024.6,1.23481181]
[1770454018624,0.05891016,2025.4,2024.6,1.23481181]
[1770454019003,0.05891016,2025.1,2024.5,0.001]
[1770454019404,1.56036886,2025.1,2024.5,0.001]
[1770454019932,0.05891016,2025.0,2024.5,0.001]
[1770454020326,1.23420221,2025.6,2024.5,0.001]
[1770454020529,0.05891016,2025.4,2024.5,0.001]
[1770454020899,0.77313267,2025.5,2024.5,1.56080716]
[1770454021838,5.208,2026.9,2024.5,1.56080716]
[1770454021839,1.5014587,2026.0,2024.7,1.55980716]
[1770454022012,0.05891016,2026.2,2024.9,1.55980716]
[1770454023336,0.05891016,2025.9,2024.9,1.55980716]
[1770454023518,1.56036886,2026.2,2025.0,1.35478514]
[1770454023713,1.29293786,2025.9,2025.1,1.23450693]
[1770454023923,1.23392477,2026.1,2025.1,1.23450693]
[1770454024134,1.23392477,2026.1,2025.1,2.79431409]
[1770454025015,1.23383719,2026.2,2025.1,2.79431409]
[1770454025209,1.23383719,2026.2,2025.2,0.9087127]
[1770454025741,1.29274735,2026.2,2025.2,0.9087127]
[1770454026036,1.29274735,2026.2,2025.3,1.23438502]
[1770454026228,1.29274735,2026.2,2024.7,1.23470294]
[1770454026229,1.58806222,2025.6,2024.7,1.23470294]
[1770454026428,1.58806222,2025.6,2024.9,1.23462596]
[1770454026631,0.05891016,2025.3,2024.9,1.23461874]
[1770454026822,0.05891016,2025.3,2024.8,1.23465258]
[1770454027022,0.002,2025.9,2024.9,1.51867546]
[1770454027229,0.05891016,2025.8,2025.2,1.2344326]
[1770454027430,0.05891016,2025.5,2024.9,1.23459818]
[1770454027634,0.05891016,2025.5,2025.0,1.23454127]
[1770454028552,1.29303623,2025.8,2024.7,1.51867546]
[1770454028841,0.05891016,2025.8,2024.8,0.64579022]
[1770454029010,0.05891016,2025.5,2024.6,4.93922671]
[1770454029613,1.46887647,2025.4,2024.5,1.23581181]
[1770454029831,1.46887647,2025.4,2024.5,0.001]
[1770454029832,1.46887647,2025.1,2024.5,0.001]
[1770454030838,1.40996631,2025.1,2024.5,0.001]
[1770454031036,1.29345612,2025.1,2024.5,0.001]
[1770454031243,1.23441427,2025.3,2024.5,0.001]
[1770454031622,2.64431591,2025.4,2024.5,0.001]
[1770454031937,1.2343496,2025.4,2024.5,0.001]
[1770454033147,1.29319385,2025.5,2024.5,0.001]
[1770454035659,0.06091016,2025.9,2024.5,1.42711385]
[1770454035861,1.29495714,2025.9,2024.7,1.42611385]
[1770454036344,1.29493679,2025.9,2024.7,1.42611385]
[1770454036521,0.05891016,2025.6,2024.7,1.42611385]
[1770454036722,2.7049031,2025.9,2024.7,1.42611385]
[1770454036949,0.76408824,2025.8,2024.9,1.42611385]
[1770454037247,0.002,2025.9,2024.9,1.42611385]
[1770454037436,0.002,2025.9,2025.1,1.23450693]
[1770454037437,1.29493257,2025.9,2025.1,1.23450693]
[1770454037747,1.29493257,2025.9,2025.0,1.23452284]
[1770454037952,0.62310104,2025.8,2025.1,0.61729264]
[1770454039126,0.002,2025.9,2025.1,0.61729264]
[1770454039644,0.06091016,2025.9,2025.2,1.23444598]
[1770454040025,0.002,2025.3,2025.2,1.23444598]
[1770454040226,0.002,2025.3,2024.8,1.2771717]
[1770454040447,0.002,2025.3,2024.8,1.23466579]
[1770454040762,0.002,2025.3,2024.8,1.23468421]
[1770454041257,0.002,2025.3,2024.7,0.001]
[1770454041466,0.002,2025.3,2024.8,4.9386934]
[1770454041670,0.002,2025.3,2024.9,1.23459183]
[1770454041838,0.002,2025.3,2024.9,1.85202035]
[1770454043046,0.002,2025.5,2025.0,1.42611385]
[1770454043749,0.002,2025.5,2025.1,1.23450693]
[1770454044684,0.002,2025.9,2025.1,1.23450693]
[1770454044884,0.002,2025.9,2025.1,2.66062078]
[1770454045182,0.002,2025.9,2025.2,0.75986485]
[1770454046152,0.002,2025.9,2025.3,1.23438502]
[1770454046652,0.002,2025.9,2025.2,5.69740496]
[1770454046653,0.002,2025.9,2025.2,1.99426303]
[1770454046849,0.002,2025.9,2025.2,0.75986485]
[1770454046850,0.05891016,2025.8,2025.2,0.75986485]
[1770454047152,1.46887647,2025.8,2025.0,1.23453997]
[1770454047349,1.46887647,2025.8,2024.9,5.55583779]
[1770454047350,1.46887647,2025.8,2024.9,1.85203007]
[1770454047554,0.05891016,2025.5,2024.9,1.85203007]
[1770454048293,0.05891016,2025.5,2024.7,0.001]
[1770454048792,0.002,2025.9,2024.7,1.42711385]
[1770454048793,1.29497202,2025.9,2024.7,1.42711385]
[1770454048980,2.70493833,2025.9,2024.7,1.42711385]
[1770454049887,1.40996631,2025.8,2024.7,1.42711385]
[1770454050398,0.05891016,2025.6,2024.8,1.23468984]
[1770454050568,0.27030177,2025.6,2024.9,0.76005631]
[1770454050773,1.23410472,2025.8,2024.9,0.76005631]
[1770454051003,1.2360531,2025.9,2024.9,0.76005631]
[1770454051494,1.2360531,2025.9,2024.9,2.18617016]
[1770454051898,0.05891016,2025.8,2024.9,2.18617016]
[1770454052111,0.05891016,2025.8,2024.9,0.76005631]
[1770454052272,0.82299624,2025.8,2024.9,0.76005631]
[1770454052473,1.23414128,2025.7,2025.0,1.2345679]
[1770454052673,2.05712071,2025.8,2025.0,1.2345679]
[1770454052907,2.05712071,2025.8,2025.0,1.2355679]
[1770454053080,0.002,2025.4,2025.0,1.2355679]
[1770454053404,0.002,2025.4,2025.1,0.69339458]
[1770454054503,0.002,2025.4,2025.2,1.23444598]
[1770454056701,0.002,2025.4,2025.1,0.69339458]
[1770454057001,0.002,2025.4,2025.1,1.23449489]
[1770454059683,0.002,2025.4,2025.0,0.001]
[1770454060879,1.50997801,2025.4,2025.0,0.001]
[1770454061181,0.05891016,2025.3,2025.0,0.001]
[1770454061606,1.50997801,2025.4,2025.0,0.001]
[1770454062001,1.23438502,2025.3,2025.0,0.001]
[1770454062210,0.2744363,2025.2,2025.0,0.001]
[1770454062413,0.002,2025.4,2025.0,0.001]
[1770454064700,0.002,2025.6,2025.0,1.4832102]
[1770454066019,0.002,2025.6,2025.2,1.4832102]
[1770454066201,0.002,2025.3,2025.2,2.71765618]
[1770454066401,0.002,2025.5,2025.2,3.4833181]
[1770454066602,0.002,2025.9,2025.2,3.4833181]
[1770454066814,0.002,2025.9,2025.2,2.0011079]
[1770454067801,0.002,2026.1,2025.4,1.4822102]
[1770454068600,0.002,2026.1,2025.6,1.4822102]
[1770454068795,0.002,2026.1,2025.7,0.27164733]
[1770454069632,0.002,2026.1,2025.7,1.75385753]
[1770454071934,0.002,2026.1,2025.8,1.23408036]
[1770454072630,0.002,2026.4,2025.8,1.23408036]
[1770454073037,0.002,2026.4,2025.8,2.71629056]
[1770454073209,0.002,2026.4,2025.9,0.79242593]
[1770454073923,0.002,2026.4,2025.8,1.23408036]
[1770454075246,0.002,2026.4,2025.9,1.4822102]
[1770454076825,0.002,2026.4,2026.0,1.23395853]
[1770454077343,0.002,2026.4,2025.9,1.23398393]
[1770454078746,0.002,2026.4,2025.8,4.93630291]
[1770454079046,0.002,2026.4,2026.0,0.001]
[1770454079247,0.002,2026.2,2026.0,0.001]
[1770454081351,1.50997801,2026.2,2025.8,0.001]
[1770454081584,0.05891016,2026.1,2025.8,0.001]
[1770454082326,0.002,2026.2,2025.8,0.001]
[1770454082526,0.002,2026.2,2025.8,1.23507886]
[1770454082858,0.002,2026.2,2025.8,0.001]
[1770454083062,1.50997801,2026.2,2025.8,0.001]
[1770454083260,0.002,2026.2,2025.8,0.001]
[1770454083587,1.23584521,2026.2,2025.8,0.001]
[1770454083883,0.002,2026.2,2025.8,0.001]
[1770454084041,1.50797801,2026.1,2025.8,0.001]
[1770454085370,1.56688817,2026.0,2025.3,1.23438502]
[1770454085555,1.56688817,2026.0,2025.2,0.001]
[1770454085761,1.56688817,2025.9,2025.2,0.001]
[1770454085949,1.38620604,2025.7,2025.2,0.001]
[1770454087279,1.4451162,2025.5,2025.2,0.001]
[1770454087435,0.26793184,2025.4,2025.2,0.001]
[1770454087634,0.26793184,2025.4,2025.0,0.001]
[1770454089634,1.50228705,2025.4,2025.0,0.001]
[1770454090466,0.26793184,2025.4,2025.0,0.001]
[1770454090963,2.86412346,2025.4,2025.0,0.001]
[1770454091140,0.78601128,2025.3,2025.0,0.001]
[1770454091666,0.78601128,2025.3,2025.2,0.001]
[1770454092168,2.0203963,2025.3,2025.2,0.001]
[1770454092573,3.38225771,2025.3,2025.0,0.001]
[1770454092901,1.36186141,2025.1,2024.8,0.001]
[1770454094345,0.05891016,2024.9,2024.8,0.001]
[1770454094870,1.42077157,2024.9,2024.5,0.001]
[1770454095048,1.62739536,2024.8,2024.5,0.001]
[1770454096452,0.26993184,2025.4,2024.5,1.36687789]
[1770454096657,1.23633265,2025.4,2024.6,1.36887789]
[1770454097263,2.65710422,2025.4,2024.6,0.003]
[1770454097449,0.05891016,2025.1,2024.6,0.003]
[1770454097964,1.42077157,2025.1,2024.6,0.003]
[1770454099086,1.2345679,2025.0,2024.6,0.003]
[1770454099272,0.75936111,2024.9,2024.6,0.003]
[1770454100060,1.23448357,2025.2,2024.6,0.003]
[1770454100260,1.23442731,2025.3,2024.6,0.003]
[1770454101761,1.23637201,2025.4,2024.6,0.003]
[1770454102155,1.29528217,2025.4,2024.6,0.003]
[1770454102955,1.29528217,2025.4,2024.6,1.36887789]
[1770454103384,1.29528217,2025.4,2024.8,1.36587789]
[1770454103385,0.002,2025.4,2024.8,1.36587789]
[1770454103877,0.002,2025.4,2024.9,0.003]
[1770454104081,4.93562389,2026.1,2025.0,1.36587789]
[1770454104281,0.002,2025.2,2025.0,1.36687789]
[1770454104477,0.05891016,2026.0,2025.0,1.36687789]
[1770454104663,0.05891016,2026.0,2025.1,1.33698626]
[1770454104858,0.05891016,2026.0,2025.0,1.36687789]
[1770454105055,0.05891016,2025.9,2025.0,1.36687789]
[1770454105557,0.05891016,2025.9,2024.3,5.1735736]
[1770454105558,0.05891016,2024.5,2024.3,0.001]
[1770454105759,0.05891016,2024.5,2023.7,0.001]
[1770454105984,0.05891016,2024.7,2024.1,1.23607472]
[1770454106157,0.1024,2025.0,2024.1,0.001]
[1770454106354,1.46426141,2025.0,2024.1,1.23611492]
[1770454106703,1.46426141,2025.0,2024.1,0.001]
[1770454106868,1.46426141,2025.0,2024.1,0.61878119]
[1770454107068,1.46426141,2025.0,2024.1,1.23607202]
[1770454107270,1.36186141,2025.4,2024.3,1.23498934]
[1770454107568,1.2345679,2025.0,2024.1,1.23608281]
[1770454107908,0.1024,2025.3,2024.3,1.36587789]
[1770454108086,1.23438257,2025.4,2024.3,1.36587789]
[1770454108274,1.23428491,2025.5,2024.5,1.36587789]
[1770454110199,1.23428491,2025.5,2024.6,1.23481181]
[1770454111597,2.75741938,2025.6,2024.6,1.23481181]
[1770454115893,0.05891016,2025.3,2024.5,1.23482761]
[1770454116202,0.05891016,2025.3,2024.8,0.001]
[1770454116496,0.002,2025.4,2024.8,0.001]
[1770454116696,0.05891016,2025.3,2024.8,0.001]
[1770454116895,0.27523076,2025.4,2024.9,1.29481239]
[1770454117197,1.33474959,2026.1,2024.8,0.001]
[1770454117198,0.002,2026.3,2025.0,1.29481239]
[1770454117409,1.23579196,2026.3,2025.0,1.29481239]
[1770454117695,1.23583704,2026.2,2025.0,1.29481239]
[1770454117915,0.002,2026.2,2025.2,1.29481239]
[1770454118074,0.002,2026.2,2025.4,1.29481239]
[1770454118269,0.002,2026.3,2025.3,0.25293193]
[1770454118471,0.002,2026.3,2025.7,1.29481239]
[1770454120194,1e-08,2026.5,2025.9,1.29481239]
[1770454120585,0.002,2027.0,2026.1,1.29481239]
[1770454120784,0.002,2027.0,2026.3,1.29481239]
[1770454122102,1.39365975,2028.7,2026.9,1.29481239]
[1770454122328,0.05891016,2029.2,2027.3,13.29779714]
[1770454122329,1.23243776,2028.5,2027.3,13.29779714]
[1770454122612,1.29134792,2028.5,2027.3,13.29779714]
[1770454123111,1.33474959,2028.4,2027.0,1.29481239]
[1770454123296,0.05891016,2028.2,2027.0,1.29481239]
[1770454123812,0.05891016,2027.9,2026.3,1.23377584]
[1770454124112,1.2328632,2027.8,2026.5,1.23365408]
[1770454124312,1.2328632,2027.8,2026.6,1.29481239]
[1770454126425,0.05891016,2027.6,2026.3,1.29481239]
[1770454126625,1.39365975,2027.3,2026.2,4.93533569]
[1770454126822,1.39365975,2027.3,2026.5,1.23365384]
[1770454127129,1.39365975,2027.3,2026.3,4.93506014]
[1770454127130,0.05891016,2027.0,2026.3,1.23373956]
[1770454127281,1.39365975,2027.3,2026.4,1.23370656]
[1770454127716,1.39365975,2027.3,2026.2,1.23383427]
[1770454127717,0.05891016,2027.0,2026.2,1.23383427]
[1770454127901,0.05891016,2027.0,2026.3,1.23377375]
[1770454128218,0.05891016,2027.0,2026.2,1.2337924]
[1770454128381,1.29229025,2027.0,2026.0,1.23395853]
[1770454128711,1.29229025,2027.0,2026.1,0.74646051]
[1770454129118,1.29229025,2027.0,2026.0,1.23395853]
[1770454129512,1.23325977,2027.2,2026.0,1.23395853]
[1770454131489,0.002,2027.6,2026.4,1.29481239]
[1770454131689,1.23501007,2027.6,2026.4,1.29481239]
[1770454131888,0.62258123,2027.5,2026.5,1.32977971]
[1770454132729,0.002,2027.6,2026.6,1.29481239]
[1770454133237,1.23498768,2027.6,2026.6,1.29481239]
[1770454133523,0.05891016,2027.1,2026.3,1.23377383]
[1770454133836,0.05891016,2027.1,2026.4,1.23367074]
[1770454134118,0.16131016,2027.1,2026.5,1.23365177]
[1770454134502,0.16131016,2027.4,2026.5,1.23365177]
[1770454134697,0.27310474,2027.4,2026.6,1.23359042]
[1770454134909,0.3320149,2027.4,2026.6,1.23359042]
[1770454135114,0.27310474,2027.4,2026.6,1.23359042]
[1770454135500,0.1024,2027.5,2026.3,2.52858823]
[1770454137960,0.1024,2027.5,2026.3,1.23377584]
[1770454137961,0.05891016,2027.2,2026.3,1.23377584]
[1770454138105,2.67216922,2027.6,2026.4,1.29481239]
[1770454138424,0.05891016,2027.4,2026.3,1.23377584]
[1770454138626,0.05891016,2027.2,2026.4,0.61691225]
[1770454138922,0.05891016,2027.2,2026.3,1.23377584]
[1770454139296,2.67216922,2027.6,2026.3,1.23377584]
[1770454139297,1.39365975,2027.4,2026.3,1.23377584]
[1770454140320,1.39365975,2026.8,2025.8,1.23403623]
[1770454140520,1.39365975,2026.8,2025.8,1.23404819]
[1770454140722,1.39365975,2026.8,2025.9,1.2340167]
[1770454140923,0.05891016,2026.5,2025.5,4.93684097]
[1770454141120,0.05891016,2026.5,2025.7,1.23411648]
[1770454141321,0.05891016,2026.5,2025.6,0.4937841]
[1770454141522,1.39365975,2026.5,2025.7,1.23413971]
[1770454141818,1.39365975,2026.5,2026.1,0.001]
[1770454142245,1.23371496,2026.4,2026.1,0.001]
[1770454142408,0.75622346,2026.3,2026.1,0.001]
[1770454144108,0.75622346,2026.3,2025.4,0.001]
[1770454144109,1.39365975,2026.2,2025.4,0.001]
[1770454144312,1.39365975,2026.2,2025.2,0.001]
[1770454144313,0.05891016,2025.9,2025.2,0.001]
[1770454145718,2.56864722,2026.1,2025.2,0.001]
[1770454145913,0.05891016,2025.9,2025.2,0.001]
[1770454146327,1.23408036,2025.8,2025.2,0.001]
[1770454146637,0.62290893,2025.7,2025.2,0.001]
[1770454147506,1.29290673,2026.0,2025.2,0.001]
[1770454147906,0.1024,2026.1,2025.2,0.001]
[1770454148102,1.36650407,2025.9,2025.0,0.001]
[1770454148335,0.05891016,2025.6,2025.0,0.001]
[1770454148506,0.1024,2025.7,2025.0,0.001]
[1770454148710,0.05891016,2025.6,2025.0,0.001]
[1770454150006,5.03872145,2026.0,2025.0,0.001]
[1770454150007,1.28260984,2026.2,2025.0,1.33091063]
[1770454150236,1.23383673,2026.2,2025.2,1.32991063]
[1770454150447,1.86097994,2026.2,2025.3,0.25644176]
[1770454150908,1.86097994,2026.2,2025.1,1.23450693]
[1770454151109,0.1024,2026.3,2025.2,1.32991063]
[1770454151320,1.33618921,2026.3,2025.2,1.32991063]
[1770454151935,1.39509937,2026.3,2025.2,1.32991063]
[1770454152142,0.1024,2026.5,2025.2,1.32991063]
[1770454152339,1.23377584,2026.3,2025.3,1.49082678]
[1770454152535,1.23377584,2026.3,2025.3,2.82073741]
[1770454153048,1.23377584,2026.3,2025.4,1.32991063]
[1770454154222,1.2926441,2026.4,2025.4,1.32991063]
[1770454154554,1.23373394,2026.4,2025.5,1.23426314]
[1770454154721,1.23373394,2026.4,2025.5,2.56417377]
[1770454154920,5.79821348,2026.5,2025.5,2.56417377]
[1770454154921,2.09727514,2026.5,2025.6,0.75012263]
[1770454155120,1.33608653,2026.5,2025.6,0.75012263]
[1770454155321,0.002,2026.1,2025.6,0.75012263]
[1770454155523,0.05891016,2026.6,2025.8,1.32991063]
[1770454155821,0.002,2026.3,2025.6,2.08003326]
[1770454156221,0.002,2026.3,2025.7,1.32991063]
[1770454156650,0.002,2026.3,2025.8,1.23408036]
[1770454156837,0.002,2026.3,2025.9,0.75003124]
[1770454157351,0.002,2026.3,2025.6,1.23419844]
[1770454157646,0.002,2026.3,2025.5,1.23422385]
[1770454158130,0.002,2026.3,2025.5,1.23425187]
[1770454158318,0.002,2026.3,2025.5,1.23422252]
[1770454158652,1.34152,2026.1,2025.4,0.001]
[1770454159025,1.28260984,2026.1,2025.4,0.001]
[1770454159243,0.1024,2026.2,2025.4,1.23531829]
[1770454159441,0.86387992,2026.2,2025.4,1.23531336]
[1770454159646,0.05891016,2026.1,2025.4,0.001]
[1770454159842,1.34152,2026.1,2025.4,0.001]
[1770454160838,1.33635853,2026.0,2025.1,4.93800185]
[1770454161154,0.76137127,2025.9,2025.1,6.1821948]
[1770454161556,0.76137127,2025.9,2025.1,7.51210543]
[1770454161757,1.29285165,2026.1,2025.1,7.51210543]
[1770454162451,1.23394149,2026.1,2025.1,7.51210543]
[1770454163025,2.09775517,2026.2,2025.2,1.32991063]
[1770454164365,1.99532634,2026.2,2025.2,1.32991063]
[1770454164663,1.99532634,2026.2,2025.3,2.08112117]
[1770454165159,1.99532634,2026.2,2025.4,1.23432408]
[1770454165456,0.76147992,2026.2,2025.4,1.23432408]
[1770454166757,1.23577942,2026.3,2025.4,1.23432408]
[1770454167161,0.002,2026.3,2025.7,1.32991063]
[1770454168478,0.002,2025.9,2025.7,1.32991063]
[1770454169143,0.002,2025.9,2025.5,4.93680884]
[1770454169354,0.002,2025.9,2025.6,1.12035283]
[1770454170265,0.002,2025.9,2025.5,1.23426314]
[1770454171243,0.002,2025.9,2025.4,4.93728335]
[1770454176169,0.002,2025.9,2025.4,1.23432408]
[1770454177053,0.002,2025.9,2025.4,2.45563093]
[1770454177249,0.002,2025.9,2025.4,1.23432408]
[1770454177554,0.002,2025.9,2025.5,1.91370536]
[1770454178466,0.002,2025.9,2025.5,1.23422926]
[1770454181270,0.002,2025.9,2025.4,4.93712647]
[1770454181476,0.002,2025.9,2025.5,1.22130685]
[1770454181885,0.002,2025.7,2025.5,1.22130685]
[1770454182278,0.002,2025.7,2025.4,4.93812647]
[1770454182468,0.002,2025.7,2025.4,6.24647483]
[1770454182781,0.002,2025.7,2025.4,2.54367244]
[1770454184068,0.002,2025.7,2025.4,1.23532408]
[1770454185514,0.002,2025.7,2025.4,0.001]
[1770454188294,0.002,2025.9,2025.4,1.22230685]
[1770454188468,0.002,2025.9,2025.5,1.22130685]
[1770454189074,0.002,2025.9,2025.4,0.001]
[1770454191882,1.2854748,2025.9,2025.4,0.001]
[1770454192994,0.05891016,2025.8,2025.4,0.001]
[1770454193294,1.34238496,2025.8,2025.4,0.001]
[1770454193988,2.57649275,2025.8,2025.0,0.001]
[1770454194389,2.57649275,2025.8,2025.6,0.001]
[1770454194591,0.75345957,2025.7,2025.0,0.001]
[1770454194903,1.34238496,2025.6,2025.4,0.001]
[1770454195193,1.34238496,2025.6,2025.0,0.001]
[1770454196685,1.2834748,2025.6,2025.0,0.001]
[1770454196892,0.75345957,2025.7,2025.0,1.22230685]
[1770454197093,0.002,2025.7,2025.0,1.22230685]
[1770454198402,0.002,2025.7,2025.0,0.001]
[1770454198577,0.002,2025.7,2025.0,1.22230685]
[1770454198777,0.002,2025.7,2025.1,1.23450693]
[1770454200785,1.2834748,2025.5,2025.0,0.001]
[1770454200985,0.002,2025.7,2025.0,1.22230685]
[1770454201200,0.002,2025.7,2025.1,1.28021701]
[1770454203100,0.002,2025.7,2025.2,1.23444598]
[1770454203304,0.002,2025.7,2025.3,1.22130685]
[1770454204605,0.002,2025.9,2025.5,1.22130685]
[1770454205582,0.002,2025.9,2025.6,1.23420221]
[1770454207908,0.002,2025.9,2025.5,6.15260242]
[1770454208211,0.002,2025.7,2025.5,6.15260242]
[1770454208413,1.25429077,2026.5,2025.5,6.15260242]
[1770454208414,0.002,2026.8,2025.6,1.21479358]
[1770454208708,0.002,2026.7,2025.9,1.21479358]
[1770454210190,0.002,2026.8,2026.0,2.46639067]
[1770454210386,0.002,2026.7,2026.0,2.46639067]
[1770454210909,0.002,2026.7,2026.1,1.23243214]
[1770454212411,0.002,2026.7,2026.2,1.23383673]
[1770454212714,0.002,2026.8,2026.4,1.23243214]
[1770454213036,0.004,2026.8,2026.4,1.23243214]
[1770454214512,0.004,2026.8,2026.5,1.23365408]
[1770454215814,0.004,2026.8,2026.5,2.46608622]
[1770454216514,0.002,2027.2,2026.6,1.23243214]
[1770454216690,0.002,2027.1,2026.6,1.23243214]
[1770454217914,0.002,2027.2,2026.6,1.23243214]
[1770454218097,0.002,2027.1,2026.6,1.23243214]
[1770454220121,0.002,2027.1,2026.7,2.46596448]
[1770454220423,0.002,2027.1,2026.8,0.74000938]
[1770454220619,0.002,2027.2,2026.9,1.23243214]
[1770454220925,0.004,2027.2,2026.9,1.23243214]
[1770454221420,0.004,2027.2,2026.8,0.74000938]
[1770454222721,1.27087876,2027.2,2026.3,0.74016158]
[1770454222920,0.002,2027.1,2026.8,1.23346638]
[1770454223529,1.27087876,2027.2,2026.1,1.23243214]
[1770454223718,1.27087876,2027.2,2026.6,1.23355296]
[1770454223916,1.27087876,2027.2,2026.1,1.23243214]
[1770454223917,1.27087876,2027.2,2026.1,4.93543858]
[1770454224232,1.27087876,2027.2,2026.1,1.23385957]
[1770454224425,1.27087876,2027.2,2026.2,1.23383251]
[1770454224640,1.26887876,2027.0,2025.9,4.93602694]
[1770454224798,1.26887876,2026.8,2025.7,1.23414128]
[1770454225932,1.26887876,2026.6,2025.7,1.23414128]
[1770454226436,1.26887876,2026.6,2025.7,2.46941868]
[1770454226932,1.23365408,2026.5,2025.7,2.46941868]
[1770454227135,2.50253284,2026.5,2025.7,2.46941868]
[1770454227900,1.26887876,2026.4,2025.7,1.23413957]
[1770454228332,1.26887876,2026.4,2025.6,1.23416555]
[1770454228534,1.26887876,2026.4,2025.5,1.23522145]
[1770454228739,1.26887876,2026.4,2025.5,0.001]
[1770454228900,1.26887876,2026.4,2025.3,0.001]
[1770454228901,1.26887876,2025.8,2025.3,0.001]
[1770454229228,1.26887876,2025.8,2025.0,0.001]
[1770454230807,1.37127876,2025.5,2025.0,0.001]
[1770454231529,1.26887876,2025.3,2024.8,0.001]
[1770454231716,1.23432408,2025.4,2024.8,0.001]
[1770454231717,1.51919904,2025.2,2024.8,0.001]
[1770454232700,1.51919904,2025.2,2024.5,0.001]
[1770454233922,1.26887876,2025.0,2024.5,0.001]
[1770454234136,1.32778892,2025.0,2024.5,0.001]
[1770454234637,1.32778892,2025.0,2024.3,0.001]
[1770454234847,1.26887876,2024.3,2023.4,1.23653766]
[1770454235026,1.26887876,2024.3,2023.4,1.23650311]
[1770454235228,1.26887876,2024.1,2023.4,0.001]
[1770454235548,1.26887876,2024.7,2023.7,1.23535332]
[1770454236235,1.26887876,2024.7,2023.5,1.17366018]
[1770454236236,1.23485514,2024.6,2023.5,1.17366018]
[1770454236410,0.74427543,2024.5,2023.5,1.17366018]
[1770454237737,1.55704247,2024.9,2023.5,1.17366018]
[1770454237738,1.45464247,2024.9,2023.5,1.17366018]
[1770454237939,5.04052768,2025.1,2023.5,1.17366018]
[1770454238144,5.04052768,2025.1,2023.7,1.17366018]
[1770454238333,4.93812768,2025.1,2023.7,1.17366018]
[1770454239114,1.19689235,2025.0,2023.7,1.17366018]
[1770454240234,1.48478666,2025.2,2023.9,1.17366018]
[1770454240409,0.51881153,2025.1,2023.9,1.17366018]
[1770454241544,0.25032028,2025.2,2023.9,1.17366018]
[1770454242149,0.25032028,2025.2,2024.1,1.17366018]
[1770454242518,1.23439475,2025.3,2024.1,1.17366018]
[1770454242946,2.43122088,2025.4,2024.1,1.17366018]
[1770454244451,2.43122088,2025.4,2024.2,2.408716]
[1770454245254,5.85342374,2025.5,2024.3,1.17366018]
[1770454245255,0.91636753,2025.5,2024.3,1.17366018]
[1770454245563,0.002,2025.0,2024.3,1.17366018]
[1770454246453,0.002,2025.0,2024.4,1.2349338]